bitfinex-derivatives/quotes_BTCF0:USTF0_20260104
["timestamp","ask_amount","ask_price","bid_price","bid_amount"]
[1767542881037,0.4,91326.0,91301.0,0.09304]
[1767542881038,0.34528732,91326.0,91313.0,0.05468815]
[1767542884145,0.34528732,91326.0,91308.0,0.0483704]
[1767542884543,0.34528732,91326.0,91308.0,0.15787603]
[1767542888743,0.34528732,91326.0,91309.0,0.03505132]
[1767542889942,0.35624132,91326.0,91303.0,0.03291504]
[1767542890147,0.010954,91324.0,91303.0,0.03291504]
[1767542890347,0.010954,91324.0,91306.0,0.10950803]
[1767542890547,0.010954,91324.0,91303.0,0.04387204]
[1767542891045,0.34528732,91326.0,91306.0,0.010956]
[1767542891643,0.010954,91325.0,91306.0,0.010956]
[1767542892043,0.010954,91325.0,91307.0,0.10951283]
[1767542892437,0.010954,91325.0,91305.0,0.010956]
[1767542892641,0.010954,91325.0,91308.0,0.10951043]
[1767542892840,0.010954,91325.0,91305.0,0.010956]
[1767542893242,0.34528732,91326.0,91309.0,0.10950923]
[1767542893442,0.34528732,91326.0,91307.0,0.010956]
[1767542893848,0.34528732,91326.0,91308.0,0.10950923]
[1767542894448,0.09321058,91327.0,91308.0,0.10950923]
[1767542894649,0.34528732,91326.0,91308.0,0.10950923]
[1767542895550,0.35624132,91326.0,91308.0,0.10950923]
[1767542895949,0.07192784,91325.0,91308.0,0.10950923]
[1767542896149,0.010954,91324.0,91308.0,0.10950923]
[1767542896447,0.010954,91324.0,91310.0,0.10563623]
[1767542896858,0.07192784,91325.0,91310.0,0.10563623]
[1767542897358,0.08288184,91325.0,91310.0,0.10563623]
[1767542899850,0.07192784,91325.0,91310.0,0.10563623]
[1767542900353,0.34528732,91326.0,91315.0,0.10563623]
[1767542902559,0.34528732,91326.0,91312.0,0.010955]
[1767542902761,0.34528732,91326.0,91316.0,0.10563623]
[1767542902955,0.41721516,91326.0,91316.0,0.10563623]
[1767542903958,0.41721516,91326.0,91312.0,0.010955]
[1767542904662,0.41721516,91326.0,91310.0,0.10563623]
[1767542905051,0.41721516,91326.0,91313.0,0.010955]
[1767542905447,0.07192784,91325.0,91313.0,0.010955]
[1767542905856,0.07192784,91325.0,91314.0,0.010955]
[1767542906751,0.07192784,91325.0,91315.0,0.010955]
[1767542907164,0.34528732,91326.0,91315.0,0.010955]
[1767542908159,0.09312,91328.0,91315.0,0.010955]
[1767542908160,0.00336874,91328.0,91315.0,0.010955]
[1767542908958,0.00013019,91327.0,91315.0,0.010955]
[1767542909260,0.00013019,91327.0,91317.0,0.10563623]
[1767542909460,0.08287984,91340.0,91324.0,0.010954]
[1767542909762,0.08287984,91340.0,91317.0,0.21127246]
[1767542909763,0.010953,91336.0,91330.0,0.10563623]
[1767542910059,0.010953,91336.0,91326.0,0.10563623]
[1767542910262,0.06066557,91337.0,91311.0,0.09312]
[1767542910457,0.06962889,91326.0,91314.0,0.010955]
[1767542910664,0.06066557,91325.0,91312.0,0.10948945]
[1767542910959,0.010955,91319.0,91311.0,0.09312]
[1767542911462,0.06066557,91321.0,91311.0,0.09312]
[1767542911463,0.010955,91320.0,91311.0,0.09312]
[1767542912663,0.06066557,91321.0,91311.0,0.09312]
[1767542913359,0.06066557,91321.0,91299.0,0.06091356]
[1767542913559,0.010955,91317.0,91305.0,0.09312]
[1767542914150,0.010955,91317.0,91307.0,0.10563623]
[1767542914355,0.05663773,91317.0,91306.0,0.10950983]
[1767542914566,0.05663773,91315.0,91305.0,0.09312]
[1767542914759,0.20971023,91330.0,91305.0,0.09312]
[1767542914760,0.05663773,91313.0,91306.0,0.10951583]
[1767542916060,0.010955,91317.0,91306.0,0.10951583]
[1767542916268,0.06759273,91317.0,91306.0,0.10951583]
[1767542917184,0.06759273,91315.0,91297.0,0.09312]
[1767542917367,0.05663773,91312.0,91300.0,0.010957]
[1767542917871,0.05663773,91309.0,91297.0,0.09312]
[1767542918065,0.010956,91306.0,91297.0,0.09312]
[1767542918260,0.05663773,91308.0,91298.0,0.10951523]
[1767542919765,0.0632246,91302.0,91282.0,0.07804421]
[1767542919959,0.0632246,91313.0,91293.0,0.12737317]
[1767542920470,0.0632246,91313.0,91286.0,0.10952542]
[1767542920471,0.09312,91312.0,91297.0,0.12737317]
[1767542920676,0.104075,91313.0,91297.0,0.12737317]
[1767542920856,9.837e-05,91312.0,91297.0,0.12737317]
[1767542922068,9.837e-05,91312.0,91298.0,0.010957]
[1767542923067,9.837e-05,91312.0,91297.0,0.12737317]
[1767542923068,0.0632246,91310.0,91295.0,0.010958]
[1767542923262,0.05663773,91309.0,91295.0,0.010958]
[1767542923461,0.0632246,91308.0,91295.0,0.010958]
[1767542923661,0.0632246,91308.0,91292.0,0.010958]
[1767542923662,0.0741806,91308.0,91292.0,0.010958]
[1767542923966,0.0632246,91307.0,91292.0,0.010958]
[1767542924268,0.06759373,91308.0,91289.0,0.10952302]
[1767542924269,0.0632246,91302.0,91289.0,0.010958]
[1767542924865,0.0632246,91300.0,91286.0,0.010959]
[1767542925066,0.05663773,91297.0,91278.0,0.09312]
[1767542925371,0.0632246,91296.0,91284.0,0.010959]
[1767542925670,0.0632246,91294.0,91283.0,0.010959]
[1767542926168,0.0632246,91294.0,91285.0,0.010959]
[1767542926773,0.0632246,91299.0,91289.0,0.010958]
[1767542926965,0.09312,91298.0,91289.0,0.010958]
[1767542928280,0.0632246,91292.0,91278.0,0.09312]
[1767542928568,0.0632246,91292.0,91272.0,0.05953607]
[1767542928870,0.11986233,91290.0,91273.0,0.10953682]
[1767542929066,0.0632246,91287.0,91276.0,0.01096]
[1767542929264,0.0632246,91290.0,91278.0,0.01096]
[1767542929459,0.0632246,91290.0,91280.0,0.010959]
[1767542929676,0.0632246,91294.0,91275.0,0.12737317]
[1767542929973,0.0632246,91294.0,91272.0,0.10955122]
[1767542929974,0.0632246,91294.0,91283.0,0.010959]
[1767542930568,0.21298233,91298.0,91277.0,0.01096]
[1767542930767,0.0632246,91297.0,91277.0,0.01096]
[1767542931367,0.0632246,91297.0,91288.0,0.010958]
[1767542932975,0.0632246,91297.0,91290.0,0.010958]
[1767542933175,0.09312,91298.0,91292.0,0.010958]
[1767542933674,0.09312,91298.0,91281.0,0.12737317]
[1767542933675,0.49312,91298.0,91281.0,0.12737317]
[1767542933874,0.0632246,91297.0,91289.0,0.010958]
[1767542935273,0.0632246,91296.0,91285.0,0.010959]
[1767542936274,0.0632246,91296.0,91287.0,0.010959]
[1767542936581,0.09312,91298.0,91287.0,0.010959]
[1767542937079,0.1563446,91298.0,91287.0,0.010959]
[1767542938066,0.0632246,91297.0,91287.0,0.010959]
[1767542938473,0.0632246,91296.0,91284.0,0.010959]
[1767542938779,0.0632246,91296.0,91278.0,0.05953607]
[1767542938983,0.0632246,91296.0,91286.0,0.010959]
[1767542941478,0.06522923,91309.0,91288.0,0.0633919]
[1767542941684,0.0653276,91312.0,91293.0,0.010958]
[1767542941873,0.0653276,91312.0,91304.0,0.010956]
[1767542941874,9.837e-05,91312.0,91304.0,0.010956]
[1767542945079,9.837e-05,91312.0,91306.0,0.010956]
[1767542945281,9.837e-05,91312.0,91299.0,0.01112125]
[1767542945777,9.837e-05,91312.0,91299.0,0.07451315]
[1767542946378,9.837e-05,91312.0,91308.0,0.010956]
[1767542950090,0.07618323,91326.0,91312.0,0.010956]
[1767542950289,0.09316,91325.0,91312.0,0.010956]
[1767542951297,5.729e-05,91324.0,91312.0,0.010956]
[1767542952580,5.729e-05,91324.0,91318.0,0.010955]
[1767542952786,5.729e-05,91324.0,91315.0,0.010955]
[1767542953493,5.729e-05,91324.0,91317.0,0.010955]
[1767542955895,5.729e-05,91324.0,91319.0,0.010955]
[1767542956595,5.729e-05,91324.0,91321.0,0.010954]
[1767542957094,5.729e-05,91324.0,91318.0,0.010955]
[1767542962602,5.729e-05,91324.0,91308.0,0.010956]
[1767542962603,5.729e-05,91324.0,91316.0,0.11323787]
[1767542963104,5.729e-05,91324.0,91318.0,0.010955]
[1767542965201,5.729e-05,91324.0,91314.0,0.0633919]
[1767542965404,0.010953,91333.0,91320.0,0.010954]
[1767542966401,0.09312,91336.0,91318.0,0.11323787]
[1767542966704,0.010953,91334.0,91320.0,0.010955]
[1767542968409,0.09312,91336.0,91320.0,0.010955]
[1767542968410,0.07618223,91333.0,91320.0,0.010955]
[1767542968906,0.010953,91331.0,91320.0,0.010955]
[1767542969716,0.07618223,91333.0,91320.0,0.010955]
[1767542972309,0.07618223,91333.0,91308.0,0.010956]
[1767542972310,0.010953,91333.0,91321.0,0.010954]
[1767542972805,0.010953,91335.0,91321.0,0.010954]
[1767542973304,0.05467963,91337.0,91321.0,0.010954]
[1767542973503,0.010953,91333.0,91321.0,0.010954]
[1767542973708,0.010953,91332.0,91318.0,0.010955]
[1767542974705,0.010953,91332.0,91319.0,0.010955]
[1767542976498,0.010952,91346.0,91320.0,0.05644215]
[1767542976499,0.05733164,91345.0,91320.0,0.05644215]
[1767542976699,0.010952,91343.0,91331.0,0.09586227]
[1767542976998,0.09312,91346.0,91334.0,0.10681527]
[1767542977199,0.104071,91346.0,91334.0,0.10681527]
[1767542977400,0.104071,91346.0,91334.0,0.09586227]
[1767542977607,0.104071,91346.0,91334.0,0.03942012]
[1767542978804,0.09312,91346.0,91335.0,0.010953]
[1767542979003,0.00218942,91349.0,91334.0,0.05036066]
[1767542979504,0.00218942,91349.0,91341.0,0.010952]
[1767542979695,0.00218942,91349.0,91338.0,0.010952]
[1767542980808,0.00218942,91349.0,91340.0,0.010952]
[1767542981309,0.00218942,91349.0,91339.0,0.010952]
[1767542981511,0.00218942,91349.0,91341.0,0.010952]
[1767542982712,0.00218942,91349.0,91339.0,0.10558013]
[1767542983213,0.00218942,91349.0,91339.0,0.11653213]
[1767542985012,0.00218942,91349.0,91312.0,0.010955]
[1767542985013,0.05733164,91336.0,91315.0,0.03942012]
[1767542985220,0.05733164,91332.0,91316.0,0.09312]
[1767542985808,0.010953,91333.0,91320.0,0.07558013]
[1767542986011,0.010953,91333.0,91321.0,0.010954]
[1767542986308,0.010953,91335.0,91321.0,0.010954]
[1767542987016,0.010953,91333.0,91320.0,0.07558013]
[1767542988420,0.010953,91333.0,91320.0,0.08653513]
[1767542989025,0.010953,91332.0,91320.0,0.08653513]
[1767542990726,0.010953,91331.0,91320.0,0.07558013]
[1767542991822,0.010952,91343.0,91327.0,0.05644215]
[1767542992015,0.09312,91342.0,91331.0,0.09586227]
[1767542992229,0.010952,91343.0,91331.0,0.10681527]
[1767542992423,0.010952,91343.0,91333.0,0.10558013]
[1767542992635,0.010952,91343.0,91333.0,0.2014424]
[1767542992835,0.010952,91343.0,91333.0,0.09586227]
[1767542993143,0.010952,91343.0,91333.0,0.03942012]
[1767542994243,0.010952,91343.0,91330.0,0.17297528]
[1767542997240,0.010952,91343.0,91330.0,0.2123954]
[1767543000838,0.09530942,91349.0,91333.0,0.0867288]
[1767543001043,0.010952,91346.0,91335.0,0.0867288]
[1767543001246,0.010952,91346.0,91335.0,0.03556803]
[1767543001440,0.010952,91344.0,91335.0,0.03556803]
[1767543003945,0.010952,91344.0,91332.0,0.010953]
[1767543006152,0.010952,91344.0,91330.0,0.20326193]
[1767543006542,0.010952,91344.0,91330.0,0.0976818]
[1767543006741,0.010952,91342.0,91330.0,0.19230893]
[1767543006948,0.010952,91342.0,91330.0,0.20326193]
[1767543008351,0.010952,91345.0,91330.0,0.20326193]
[1767543008751,0.010952,91345.0,91331.0,0.010953]
[1767543010050,0.010952,91345.0,91331.0,0.0976818]
[1767543010244,0.010952,91345.0,91332.0,0.010953]
[1767543010450,0.010952,91343.0,91331.0,0.03556803]
[1767543012653,0.010952,91346.0,91331.0,0.03556803]
[1767543013654,0.010952,91346.0,91331.0,0.04652103]
[1767543014553,0.00218942,91349.0,91331.0,0.0867288]
[1767543014746,0.010951,91347.0,91334.0,0.0867288]
[1767543014945,0.010951,91347.0,91334.0,0.03556803]
[1767543018450,0.010952,91345.0,91334.0,0.03556803]
[1767543025055,0.010951,91348.0,91335.0,0.010953]
[1767543025259,0.010951,91348.0,91335.0,0.08630815]
[1767543025459,0.010951,91347.0,91335.0,0.08630815]
[1767543026255,0.010951,91347.0,91335.0,0.03556803]
[1767543030060,0.010952,91345.0,91335.0,0.03556803]
[1767543030259,0.010952,91345.0,91332.0,0.06072566]
[1767543030558,0.010952,91345.0,91332.0,0.08955744]
[1767543032759,0.010952,91345.0,91333.0,0.02883178]
[1767543033065,0.00218942,91349.0,91333.0,0.02883178]
[1767543033364,0.010952,91343.0,91333.0,0.02883178]
[1767543035367,0.010951,91348.0,91333.0,0.02883178]
[1767543035560,0.010951,91348.0,91310.0,0.010956]
[1767543035561,0.010953,91330.0,91322.0,0.07863359]
[1767543035756,0.04541388,91336.0,91320.0,0.07863359]
[1767543035961,0.04541388,91336.0,91317.0,0.0299557]
[1767543036868,0.010954,91329.0,91317.0,0.0299557]
[1767543037870,0.010954,91327.0,91317.0,0.0299557]
[1767543038261,0.09312,91337.0,91325.0,0.0299557]
[1767543038459,0.010953,91330.0,91320.0,0.15151326]
[1767543038660,0.010954,91328.0,91320.0,0.15151326]
[1767543038863,0.010954,91328.0,91320.0,0.10558013]
[1767543039065,0.010954,91328.0,91319.0,0.0299557]
[1767543040369,0.010954,91325.0,91312.0,0.1230757]
[1767543040561,0.010954,91325.0,91312.0,0.0299557]
[1767543041768,0.05636788,91329.0,91312.0,0.0299557]
[1767543042370,0.04541388,91329.0,91312.0,0.0299557]
[1767543043165,0.010954,91323.0,91312.0,0.0299557]
[1767543043360,0.010954,91321.0,91312.0,0.0299557]
[1767543043969,0.010954,91321.0,91310.0,0.10558013]
[1767543044564,0.010954,91321.0,91308.0,0.07588883]
[1767543047371,0.010955,91318.0,91308.0,0.0299557]
[1767543047575,0.010955,91318.0,91301.0,0.07863359]
[1767543047576,0.010955,91314.0,91302.0,0.0299557]
[1767543048167,0.010955,91317.0,91302.0,0.0299557]
[1767543048673,0.010955,91317.0,91298.0,0.07863359]
[1767543048674,0.010956,91311.0,91298.0,0.0299557]
[1767543048875,0.04541388,91317.0,91298.0,0.0299557]
[1767543049278,0.04541388,91316.0,91298.0,0.0299557]
[1767543049674,0.04541388,91314.0,91295.0,0.09312]
[1767543050074,0.010956,91310.0,91295.0,0.17996583]
[1767543050274,0.04541388,91312.0,91295.0,0.0299557]
[1767543050470,0.010956,91308.0,91295.0,0.0299557]
[1767543050669,0.04541388,91312.0,91295.0,0.0299557]
[1767543050670,0.010956,91306.0,91295.0,0.0299557]
[1767543050873,0.010957,91302.0,91295.0,0.0299557]
[1767543051073,0.010956,91305.0,91295.0,0.0299557]
[1767543051983,0.010957,91303.0,91295.0,0.0299557]
[1767543052383,0.010957,91303.0,91289.0,0.01314886]
[1767543052884,0.010957,91303.0,91289.0,0.08852519]
[1767543053070,0.04541388,91308.0,91289.0,0.07756719]
[1767543053277,0.010957,91304.0,91289.0,0.07756719]
[1767543054982,0.02982359,91311.0,91292.0,0.0409137]
[1767543054983,0.010956,91307.0,91292.0,0.0409137]
[1767543055179,0.010956,91307.0,91293.0,0.07475849]
[1767543055379,0.010956,91305.0,91294.0,0.07429977]
[1767543057184,0.010956,91305.0,91295.0,0.0299557]
[1767543058084,0.04541388,91312.0,91295.0,0.0299557]
[1767543058279,0.010956,91307.0,91297.0,0.0299557]
[1767543059186,0.010956,91307.0,91293.0,0.0438931]
[1767543059387,0.010956,91305.0,91293.0,0.0738488]
[1767543059686,0.010956,91308.0,91295.0,0.0299557]
[1767543059883,0.010957,91304.0,91295.0,0.0299557]
[1767543060089,0.010957,91304.0,91290.0,0.08466643]
[1767543060274,0.04541388,91310.0,91290.0,0.07370843]
[1767543060275,0.010957,91303.0,91290.0,0.07370843]
[1767543061090,0.010957,91300.0,91290.0,0.07370843]
[1767543061279,0.010957,91299.0,91290.0,0.03011995]
[1767543061480,0.010957,91303.0,91290.0,0.03011995]
[1767543064097,0.0454658,91311.0,91291.0,0.02546861]
[1767543064403,0.0454658,91311.0,91292.0,0.02546861]
[1767543064602,0.010955,91319.0,91299.0,0.06661571]
[1767543064800,0.010955,91319.0,91300.0,0.02546861]
[1767543065007,0.010956,91308.0,91300.0,0.02546861]
[1767543065507,0.09312,91311.0,91305.0,0.02546861]
[1767543065907,0.104076,91311.0,91300.0,0.04044104]
[1767543066102,0.104076,91311.0,91300.0,0.06590965]
[1767543066500,0.09312,91311.0,91300.0,0.02546861]
[1767543067104,0.010956,91307.0,91300.0,0.02546861]
[1767543068098,0.010956,91305.0,91300.0,0.02546861]
[1767543068802,0.010956,91308.0,91300.0,0.02546861]
[1767543069399,0.09312,91312.0,91293.0,0.02546861]
[1767543069400,0.010957,91304.0,91293.0,0.02546861]
[1767543069598,0.09312,91312.0,91295.0,0.06413563]
[1767543069599,0.010956,91307.0,91295.0,0.06413563]
[1767543069798,0.010956,91306.0,91295.0,0.06413563]
[1767543069998,0.010957,91304.0,91296.0,0.02546861]
[1767543071102,0.010956,91307.0,91296.0,0.02546861]
[1767543073011,0.010956,91307.0,91296.0,0.06277363]
[1767543073203,0.010956,91307.0,91297.0,0.02546861]
[1767543074005,0.010956,91310.0,91298.0,0.02546861]
[1767543074210,0.09312,91312.0,91299.0,0.02546861]
[1767543074395,0.010956,91308.0,91295.0,0.04739268]
[1767543074809,0.010956,91308.0,91298.0,0.02546861]
[1767543075212,0.010956,91310.0,91300.0,0.02546861]
[1767543076213,0.010956,91309.0,91300.0,0.02546861]
[1767543080720,0.104115,91313.0,91304.0,0.02546861]
[1767543080919,0.010956,91311.0,91304.0,0.02546861]
[1767543081618,0.010954,91327.0,91291.0,0.010958]
[1767543081619,0.010955,91317.0,91305.0,0.02546861]
[1767543081922,0.08023911,91317.0,91303.0,0.010957]
[1767543082710,0.02546046,91332.0,91309.0,0.00757533]
[1767543083010,0.02546046,91332.0,91302.0,0.09316]
[1767543083011,0.010954,91328.0,91311.0,0.00757533]
[1767543083216,0.010954,91328.0,91314.0,0.00345972]
[1767543084120,0.010954,91328.0,91314.0,0.01441472]
[1767543084321,0.010954,91328.0,91315.0,0.00345972]
[1767543085122,0.010954,91326.0,91315.0,0.00345972]
[1767543086120,0.010954,91329.0,91317.0,0.00228069]
[1767543088824,0.09312,91333.0,91317.0,0.00228069]
[1767543090325,0.010953,91330.0,91317.0,0.00228069]
[1767543090822,0.010953,91330.0,91315.0,0.010955]
[1767543092929,0.010953,91330.0,91308.0,0.00857788]
[1767543092930,0.010953,91330.0,91317.0,0.010955]
[1767543095233,0.02246725,91332.0,91317.0,0.010955]
[1767543095733,0.010953,91331.0,91317.0,0.010955]
[1767543097333,0.03290001,91331.0,91317.0,0.010955]
[1767543097536,0.02194701,91330.0,91317.0,0.010955]
[1767543098536,0.09312,91334.0,91305.0,0.010956]
[1767543098537,0.02194701,91325.0,91305.0,0.010956]
[1767543098829,0.03290101,91322.0,91310.0,0.010956]
[1767543099430,0.02194701,91322.0,91302.0,0.10041816]
[1767543099625,0.02194701,91322.0,91302.0,0.50041816]
[1767543099831,0.02194701,91322.0,91303.0,0.10950084]
[1767543100236,0.02194701,91322.0,91311.0,0.010956]
[1767543104342,0.104073,91334.0,91302.0,0.50041816]
[1767543104343,0.010953,91333.0,91319.0,0.010955]
[1767543104637,0.03290001,91333.0,91320.0,0.11656963]
[1767543105033,0.010953,91331.0,91320.0,0.10561563]
[1767543105234,0.02194701,91331.0,91320.0,0.10561563]
[1767543106742,0.03290101,91330.0,91320.0,0.10561563]
[1767543107846,0.010953,91331.0,91320.0,0.10561563]
[1767543108638,0.02194701,91333.0,91320.0,0.10561563]
[1767543108836,0.010953,91332.0,91320.0,0.10561563]
[1767543111141,0.02194701,91333.0,91321.0,0.010954]
[1767543112252,0.03290001,91333.0,91321.0,0.010954]
[1767543113448,0.03290001,91333.0,91320.0,0.10561563]
[1767543113749,0.010953,91332.0,91320.0,0.10561563]
[1767543114143,0.02194701,91330.0,91313.0,0.09312]
[1767543114344,0.02194701,91327.0,91320.0,0.10561563]
[1767543114644,0.02194701,91327.0,91317.0,0.10561563]
[1767543115147,0.02194701,91327.0,91316.0,0.010955]
[1767543115546,0.02194701,91327.0,91317.0,0.10561563]
[1767543116247,0.02194701,91326.0,91317.0,0.10561563]
[1767543117451,0.03290101,91326.0,91317.0,0.10561563]
[1767543117654,0.02194701,91326.0,91317.0,0.10561563]
[1767543118446,0.02194701,91326.0,91313.0,0.104075]
[1767543119155,0.02194701,91326.0,91315.0,0.010955]
[1767543119761,0.03290101,91326.0,91313.0,0.09312]
[1767543120349,0.03290101,91326.0,91313.0,0.104075]
[1767543120552,0.02048355,91321.0,91313.0,0.09312]
[1767543120944,0.010955,91320.0,91307.0,0.17175359]
[1767543121649,0.02048355,91321.0,91310.0,0.10561563]
[1767543124452,0.02048355,91321.0,91310.0,0.11657163]
[1767543127055,0.02048355,91321.0,91312.0,0.010956]
[1767543127270,0.010954,91327.0,91314.0,0.010955]
[1767543127560,0.010954,91329.0,91317.0,0.10561563]
[1767543127858,0.010954,91329.0,91317.0,0.11657063]
[1767543128664,0.010954,91329.0,91315.0,0.010955]
[1767543128847,0.010954,91329.0,91319.0,0.10561563]
[1767543129259,0.010954,91328.0,91319.0,0.10561563]
[1767543130860,0.010954,91327.0,91319.0,0.10561563]
[1767543131060,0.010954,91327.0,91313.0,0.010955]
[1767543132764,0.010954,91326.0,91313.0,0.010955]
[1767543134164,0.02048355,91328.0,91311.0,0.010956]
[1767543134563,0.010954,91325.0,91312.0,0.010955]
[1767543139461,0.02048355,91328.0,91313.0,0.010955]
[1767543139770,0.02048355,91326.0,91314.0,0.010955]
[1767543140571,0.02048355,91326.0,91315.0,0.010955]
[1767543143271,0.03143755,91326.0,91315.0,0.010955]
[1767543150381,0.01910816,91325.0,91315.0,0.010955]
[1767543153881,0.01910816,91325.0,91317.0,0.010955]
[1767543166696,0.01910816,91325.0,91315.0,0.010955]
[1767543168696,0.01910816,91325.0,91317.0,0.010955]
[1767543171005,0.01910816,91325.0,91318.0,0.010955]
[1767543171197,0.12368371,91331.0,91310.0,0.07863359]
[1767543171505,0.01961071,91330.0,91310.0,0.07863359]
[1767543172413,0.01961071,91330.0,91316.0,0.010955]
[1767543172618,0.01961071,91330.0,91322.0,0.010954]
[1767543172818,0.01961071,91330.0,91323.0,0.010954]
[1767543173915,0.01961071,91330.0,91321.0,0.010954]
[1767543178418,0.01961071,91330.0,91311.0,0.07863359]
[1767543178616,0.01961071,91330.0,91319.0,0.010955]
[1767543180325,0.01961071,91330.0,91320.0,0.010954]
[1767543180729,0.01961071,91330.0,91322.0,0.010954]
[1767543182128,0.01961071,91330.0,91324.0,0.010954]
[1767543182623,0.01961071,91330.0,91321.0,0.010954]
[1767543183428,0.01961071,91330.0,91323.0,0.010954]
[1767543184927,0.01961071,91330.0,91322.0,0.010954]
[1767543189334,0.01961071,91330.0,91324.0,0.010954]
[1767543191528,0.01961071,91330.0,91325.0,0.010954]
[1767543191735,0.01961071,91330.0,91326.0,0.010954]
[1767543207350,0.01961071,91330.0,91325.0,0.010954]
[1767543208245,0.01961071,91330.0,91326.0,0.010954]
[1767543209052,0.02893059,91336.0,91326.0,0.010954]
[1767543209243,0.104072,91340.0,91316.0,0.09312]
[1767543209244,0.01817822,91335.0,91330.0,0.010953]
[1767543210043,0.01817822,91335.0,91327.0,0.010954]
[1767543214160,0.01603927,91341.0,91331.0,0.010953]
[1767543215474,0.01603927,91341.0,91329.0,0.010953]
[1767543215974,0.01603927,91340.0,91329.0,0.010953]
[1767543218566,0.01603927,91340.0,91330.0,0.010953]
[1767543219371,0.01603927,91340.0,91320.0,0.010955]
[1767543221169,0.01603927,91340.0,91324.0,0.010954]
[1767543221362,0.010951,91353.0,91339.0,0.010952]
[1767543221568,0.0259504,91352.0,91339.0,0.010952]
[1767543221779,0.02813982,91349.0,91339.0,0.010952]
[1767543222276,0.02813982,91349.0,91329.0,0.104073]
[1767543222670,0.0259504,91347.0,91334.0,0.010953]
[1767543223272,0.01603927,91341.0,91329.0,0.09312]
[1767543223473,0.01603927,91337.0,91330.0,0.010953]
[1767543224372,0.01603927,91337.0,91328.0,0.09312]
[1767543224579,0.04198967,91334.0,91329.0,0.010954]
[1767543224780,0.01603927,91333.0,91329.0,0.010954]
[1767543225683,0.01603927,91333.0,91328.0,0.09312]
[1767543229885,0.01603927,91333.0,91329.0,0.010954]
[1767543230784,0.01603927,91337.0,91329.0,0.010954]
[1767543235092,0.01603927,91335.0,91328.0,0.09312]
[1767543235388,0.01603927,91335.0,91328.0,0.104074]
[1767543236089,0.01603927,91335.0,91328.0,0.09312]
[1767543236283,0.01603927,91332.0,91328.0,0.09312]
[1767543238093,0.01603927,91332.0,91320.0,0.10561297]
[1767543238094,0.01603927,91332.0,91323.0,0.010954]
[1767543238588,0.01603927,91332.0,91324.0,0.010954]
[1767543238794,0.01603927,91332.0,91325.0,0.010954]
[1767543240694,0.01603927,91332.0,91323.0,0.010954]
[1767543241403,0.05284741,91336.0,91323.0,0.010954]
[1767543241582,0.01594401,91332.0,91323.0,0.010954]
[1767543241782,0.01594401,91329.0,91323.0,0.010954]
[1767543241987,0.00335404,91329.0,91320.0,0.104074]
[1767543242192,0.010954,91329.0,91320.0,0.09312]
[1767543242387,0.010954,91328.0,91320.0,0.09312]
[1767543242585,0.010953,91330.0,91320.0,0.09312]
[1767543243085,0.10561297,91340.0,91321.0,0.010954]
[1767543243086,0.010953,91334.0,91321.0,0.010954]
[1767543243294,0.010953,91336.0,91323.0,0.010954]
[1767543243888,0.04041153,91335.0,91323.0,0.010954]
[1767543244092,0.04041153,91333.0,91323.0,0.010954]
[1767543244292,0.02446752,91332.0,91323.0,0.010954]
[1767543245294,0.02446752,91332.0,91321.0,0.010954]
[1767543246500,0.02446752,91332.0,91320.0,0.09312]
[1767543246501,0.02446752,91332.0,91322.0,0.010954]
[1767543247484,0.02446752,91332.0,91323.0,0.010954]
[1767543249593,0.02446752,91332.0,91320.0,0.20968797]
[1767543252103,0.010953,91331.0,91320.0,0.19873297]
[1767543252303,0.02446752,91332.0,91320.0,0.19873297]
[1767543252603,0.010953,91331.0,91320.0,0.19873297]
[1767543253306,0.03542052,91331.0,91320.0,0.09312]
[1767543254301,0.010953,91331.0,91320.0,0.09312]
[1767543254502,0.010953,91331.0,91320.0,0.19873297]
[1767543254691,0.01594401,91333.0,91320.0,0.20968697]
[1767543256807,0.01594401,91333.0,91322.0,0.010954]
[1767543258600,0.010953,91334.0,91322.0,0.010954]
[1767543260011,0.010953,91333.0,91322.0,0.010954]
[1767543261010,0.03542052,91335.0,91322.0,0.010954]
[1767543261608,0.03542052,91335.0,91320.0,0.27736656]
[1767543261807,0.010953,91335.0,91324.0,0.010954]
[1767543262711,0.01594401,91338.0,91322.0,0.010954]
[1767543262904,0.010953,91334.0,91322.0,0.010954]
[1767543265816,0.010953,91334.0,91323.0,0.010954]
[1767543270338,0.010953,91334.0,91322.0,0.010954]
[1767543271440,0.010953,91332.0,91321.0,0.07863359]
[1767543271737,0.03844198,91336.0,91321.0,0.07863359]
[1767543271738,0.024072,91334.0,91321.0,0.010954]
[1767543273732,0.01397446,91335.0,91321.0,0.010954]
[1767543274140,0.010953,91334.0,91321.0,0.010954]
[1767543276733,0.01397446,91335.0,91323.0,0.010954]
[1767543277639,0.02412515,91332.0,91320.0,0.17175359]
[1767543277827,0.11656497,91340.0,91318.0,0.00016425]
[1767543277828,0.02412515,91326.0,91318.0,0.00016425]
[1767543278032,0.02412515,91326.0,91313.0,0.09312]
[1767543278232,0.010954,91322.0,91313.0,0.09312]
[1767543279131,0.010954,91323.0,91313.0,0.09312]
[1767543280235,0.010955,91318.0,91305.0,0.07863359]
[1767543280441,0.010955,91321.0,91305.0,0.03332414]
[1767543280639,0.010955,91321.0,91305.0,0.010956]
[1767543280838,0.010955,91321.0,91306.0,0.01864]
[1767543281741,0.010955,91321.0,91307.0,0.010956]
[1767543283346,0.02412515,91324.0,91307.0,0.03332414]
[1767543283347,0.010954,91324.0,91307.0,0.03332414]
[1767543283549,0.010954,91322.0,91307.0,0.03332414]
[1767543283950,0.010954,91325.0,91309.0,0.010956]
[1767543284145,0.010954,91325.0,91310.0,0.10561297]
[1767543284450,0.02505873,91331.0,91311.0,0.02236814]
[1767543284949,0.02505873,91331.0,91315.0,0.010955]
[1767543285448,0.04918388,91331.0,91315.0,0.010955]
[1767543285644,0.010954,91329.0,91315.0,0.010955]
[1767543286154,0.010954,91329.0,91312.0,0.010955]
[1767543286653,0.010954,91329.0,91314.0,0.010955]
[1767543286847,0.03823088,91331.0,91314.0,0.010955]
[1767543287355,0.02412515,91329.0,91314.0,0.010955]
[1767543287553,0.010954,91328.0,91311.0,0.010956]
[1767543288564,0.010954,91326.0,91311.0,0.010956]
[1767543291452,0.010954,91324.0,91311.0,0.010956]
[1767543291953,0.03823088,91329.0,91309.0,0.01486917]
[1767543292254,0.03823088,91328.0,91309.0,0.01486917]